[Event "4NCL 2022-2023"]
[Site "Daventry"]
[Date "2023.02.12"]
[Round "6.3"]
[White "Freeman, Gordon"]
[Black "Eggleston, David J"]
[Result "1/2-1/2"]
[ECO "E05"]
[WhiteElo "2094"]
[BlackElo "2364"]
[Annotator "TA"]
[PlyCount "96"]
[EventDate "2022.10.20"]
[EventType "team-tourn"]
[EventCountry "ENG"]
[SourceTitle "playchess.com"]
[Source "ChessBase"]
[SourceQuality "1"]
[TimeControl "40/6000+30:2400+30"]

{[%evp 13,96,5,0,0,18,-16,2,-3,21,18,9,14,31,-29,-16,-20,-17,-20,-13,-17,-24,-19,0,0,0,-21,-21,-25,-26,-38,-22,-22,-25,-40,-40,-62,-15,-21,-13,-68,0,0,0,0,0,0,0,0,0,0,0,0,0,0,0,0,13,0,13,13,19,0,0,0,0,0,0,-2,0,0,0,0,0,0,0,0,0,0,0,0,0,0,0,0,0]} 1. d4 {[%emt 0:00:03]} Nf6 {[%emt 0:03:29]} 2. Nf3 {[%emt 0:00:06]} e6 {[%emt 0:00:06]} 3. g3 {[%emt 0:00:08]} d5 {[%emt 0:01:18]} 4. Bg2 {[%emt 0:00:17]} Be7 {[%emt 0:00:06]} 5. c4 {[%emt 0:00:22]} O-O {[%emt 0:00:37]} 6. O-O {[%emt 0:00:14]} dxc4 {[%emt 0:00:06]} 7. Qc2 {[%emt 0:00:43]} b5 {[%emt 0:02:04]} 8. a4 {[%emt 0:03:39] E05: Open Catalan: 5 Nf3 Be7.} b4 {[%emt 0:00:18] 8...Bb7 is more fashionable.} 9. Qxc4 {[%emt 0:02:24]} (9. Nfd2 $5 {[%cal Rg2a8]} c6 10. Nxc4 $11) 9... Bb7 {[%emt 0:02:40]} (9... Ba6 $5 {[%cal Ra6c4]} 10. Qc2 Nbd7 $11) 10. Bg5 {[%emt 0:03:13]} Bd5 {[%emt 0:02:46]} 11. Qc2 {[%emt 0:08:17]} Nbd7 {[%emt 0:04:33]} 12. Nbd2 {[%emt 0:06:24]} c5 {[%emt 0:01:03]} 13. Bxf6 {[%emt 0:04:58]} ({White should play} 13. e4 $14 Bb7 14. e5) 13... Bxf6 {[%emt 0:16:29]} 14. e4 {[%emt 0:13:38]} Bb7 {[%emt 0:00:14]} 15. dxc5 {[%emt 0:01:38]} Rc8 {[%emt 0:00:14]} 16. Nb3 {[%emt 0:01:08]} Be7 {[%emt 0:00:08][%cal Rd7c5]} 17. Rfd1 {[%emt 0:05:34] [#]} Qc7 $146 {[%emt 0:06:06][%cal Rd7c5] Against Ne5} (17... Qe8 $5 {[%cal Rd7c5]}) ({Predecessor:} 17... Qe8 18. Qd2 Nxc5 19. Nxc5 Bxc5 20. Ne5 Rd8 21. Qe1 Qe7 {0-1 Stefanov,E (2072)-Enchev,I (2393) BUL-ch sf 79th 2015 (1)}) 18. c6 {[%emt 0:05:46]} Nb8 {[%emt 0:07:20]} 19. Nfd4 {[%emt 0:05:46][%cal Oc6b7]} Nxc6 {[%emt 0:01:31]} 20. Nxc6 {[%emt 0:03:33]} Bxc6 {[%emt 0:01:33]} 21. Nd4 {[%emt 0:02:00] [#] Rac1 would be deadly.} Bd7 {[%emt 0:05:56] This pair of bishops is nice.} 22. Qxc7 {[%emt 0:05:20]} Rxc7 {[%emt 0:03:33]} 23. Nb5 {[%emt 0:06:00]} Bxb5 {[%emt 0:00:15]} 24. axb5 {[%emt 0:00:09]} Rb8 {[%emt 0:01:34]} (24... Rc2 $15 25. Rdc1 (25. Rxa7 Bc5 $17) 25... Rxb2 26. Rxa7 Bf6) 25. Bf1 $11 {[%emt 0:12:29]} Rc2 {[%emt 0:11:06]} 26. Rdc1 {[%emt 0:04:51]} (26. Rxa7 $11 Bc5 27. Rad7 Bxf2+ 28. Kh1) 26... Rxc1 {[%emt 0:14:25]} (26... Rxb2 $15 27. Rxa7 Bd8) 27. Rxc1 $15 {[%emt 0:00:10][%mdl 4096] Endgame KRB-KRB. The position is equal.} Rb7 {[%emt 0:00:30]} 28. Rc8+ {[%emt 0:03:03]} Bf8 {[%emt 0:01:23]} 29. b3 {[%emt 0:02:26]} g6 {[%emt 0:00:09][%cal Bg7g6,Bg6g5][%mdl 32]} 30. Rd8 {[%emt 0:03:22]} Kg7 {[%emt 0:00:15]} 31. Bc4 {[%emt 0:01:00]} Bc5 {[%emt 0:03:42]} 32. Kg2 {[%emt 0:01:37]} Bb6 {[%emt 0:00:48]} 33. Rd3 {[%emt 0:00:44]} g5 {[%emt 0:00:48]} 34. f4 {[%emt 0:02:43]} h6 {[%emt 0:01:08]} 35. h3 {[%emt 0:04:15]} Rc7 {[%emt 0:01:39]} 36. Kf3 {[%emt 0:00:00]} Kf6 {[%emt 0:00:31]} 37. Rd1 {[%emt 0:00:00]} gxf4 {[%emt 0:01:08]} 38. gxf4 {[%emt 0:00:00]} Ke7 {[%emt 0:00:19]} 39. f5 {[%emt 0:00:55]} Rc8 {[%emt 0:04:36]} 40. Rd2 {[%emt 0:00:38]} Kf6 {[%emt 0:02:01]} 41. Rd7 {[%emt 0:00:00][%cal Od7f7]} Rc7 {[%emt 0:04:27]} 42. fxe6 {[%emt 0:04:42]} fxe6 {[%emt 0:02:08]} 43. Rd6 {[%emt 0:04:36]} Re7 {[%emt 0:00:17]} 44. Kf4 {[%emt 0:01:25]} Bd4 $1 {[%emt 0:00:45][%mdl 64] [#] ...Be5+ is the strong threat. Decoy} 45. Rc6 {[%emt 0:03:13]} (45. Rxd4 $2 {too greedy.} e5+ 46. Ke3 exd4+ 47. Kxd4 h5 $19) 45... Bc3 {[%emt 0:01:18]} 46. Ke3 {[%emt 0:06:57]} Ke5 {[%emt 0:03:07]} 47. Rc5+ {[%emt 0:01:22]} Kf6 {[%emt 0:00:07]} 48. Rc6 {[%emt 0:00:35]} Ke5 {[%emt 0:00:20] Weighted Error Value: White=0.09 (flawless) /Black=0.07 (flawless)} 1/2-1/2

[Event "4NCL 2022-2023"]
[Site "Daventry"]
[Date "2023.02.12"]
[Round "6.4"]
[White "Kirk, Ezra"]
[Black "Wall, Gavin"]
[Result "1-0"]
[ECO "C75"]
[WhiteElo "2427"]
[BlackElo "2290"]
[Annotator "TA"]
[PlyCount "63"]
[EventDate "2022.10.20"]
[EventType "team-tourn"]
[EventCountry "ENG"]
[SourceTitle "playchess.com"]
[Source "ChessBase"]
[SourceQuality "1"]
[TimeControl "40/6000+30:2400+30"]

{[%evp 13,63,39,59,50,51,43,46,45,44,44,58,45,45,60,58,38,46,39,59,58,140,137,140,122,160,137,197,151,203,200,220,143,196,196,254,220,379,216,222,193,172,164,287,268,303,277,299,281,594,579,637,628]} 1. e4 {[%emt 0:04:07]} e5 {[%emt 0:00:21]} 2. Nf3 {[%emt 0:00:16]} Nc6 {[%emt 0:00:24]} 3. Bb5 {[%emt 0:00:53]} a6 {[%emt 0:00:09]} 4. Ba4 {[%emt 0:00:05]} d6 {[%emt 0:00:36]} 5. O-O {[%emt 0:00:28]} Nge7 {[%emt 0:00:48]} 6. c3 {[%emt 0:00:42]} Ng6 {[%emt 0:01:27]} 7. d4 {[%emt 0:00:35]} Bd7 {[%emt 0:00:20]} 8. Bc2 {[%emt 0:00:07] C75: Ruy Lopez: Deferred Steinitz: 5 c3 Bd7 6 d4 without ...g6.} Be7 {[%emt 0:00:41] [#]} 9. a4 $146 {[%emt 0:00:37]} ({Predecessor:} 9. h3 O-O 10. Re1 h6 11. Nbd2 Nh4 12. Nxh4 Bxh4 13. Nf3 Bf6 14. Be3 Re8 15. Nh2 {1-0 Varillas Jimenes,I (2028)-Vilca Contreras,D (1150) Nonalaya Ricardo Online op blitz 2020 (1)}) 9... O-O {[%emt 0:05:02]} 10. d5 {[%emt 0:00:25] White is slightly better.} Nb8 {[%emt 0:04:31]} 11. a5 {[%emt 0:00:07]} f5 {[%emt 0:05:04]} 12. exf5 {[%emt 0:00:38]} Bxf5 {[%emt 0:00:06]} 13. Bxf5 {[%emt 0:00:15]} Rxf5 {[%emt 0:00:03]} 14. Nbd2 {[%emt 0:00:08]} Nd7 {[%emt 0:10:46]} 15. Ne4 {[%emt 0:03:35]} Qf8 {[%emt 0:11:58]} 16. c4 {[%emt 0:20:39]} c5 {[%emt 0:16:54] White leaves nothing to chance now.} ({Black should try} 16... Nf4 $14) 17. Rb1 {[%emt 0:13:49]} b6 {[%emt 0:04:14]} 18. axb6 {[%emt 0:08:11][%cal Ba5b6,Bb6b7][%mdl 32]} a5 {[%emt 0:02:59]} 19. b7 {[%emt 0:00:57] White is much more active.} Ra7 {[%emt 0:01:13]} (19... Rb8 $16 20. Nfg5 (20. Qb3 a4 $16) 20... Bxg5) 20. Ra1 {[%emt 0:03:05]} ({White should play} 20. Qb3 $18) 20... Qb8 {[%emt 0:02:01]} (20... h6 $16 {is a better defense.} 21. Ne1 (21. Qb3 Qb8 $16) 21... Rxb7 22. Rxa5 Rf7) 21. Nfg5 $18 {[%emt 0:05:59]} Bxg5 {[%emt 0:06:49]} 22. Bxg5 {[%emt 0:02:24]} Rxb7 {[%emt 0:08:21]} (22... Rf7 $16 23. g3 Ngf8) 23. Rxa5 {[%emt 0:01:16] Strongly threatening Qg4.} Rxb2 {[%emt 0:00:05]} (23... Rf7 {keeps fighting.} 24. Ra6 Rb6) 24. Qa1 {[%emt 0:03:07] [#] Ra8 would be deadly.} Ndf8 $2 {[%emt 0:01:56]} (24... Rf8 25. Ra7 Rb7 26. Rxb7 {[%mdl 64] Deflection} Qxb7 27. Nxd6 Qb6) 25. Ra6 {[%emt 0:10:10]} (25. Ra8 $142 Qb6 26. Be3) 25... Qb3 {[%emt 0:13:21]} 26. Be3 {[%emt 0:04:07] Threatens to win with Ra8.} (26. Nxd6 Rxg5 27. g3 Rg4 $17) (26. Rxd6 $6 Qc2 $14) 26... Nf4 {[%emt 0:00:47]} 27. Bxf4 {[%emt 0:06:23]} (27. Rxd6 $2 Qxe3 28. Qxb2 (28. fxe3 Rxg2+ 29. Kh1 Rh5) 28... Qxe4 $19) 27... exf4 {[%emt 0:07:51]} (27... Rxf4 {was necessary.} 28. Nxd6 Qc2) 28. Ra3 {[%emt 0:04:33]} (28. Nxd6 $6 Rf6 29. Rc6 Re2 $18) (28. Rxd6 Re2 29. Nc3 (29. Nxc5 Qxc4 30. Ne6 Nxe6 $14) 29... Rc2 $11) 28... Qb6 {[%emt 0:01:45] [#]} 29. Nxd6 $1 {[%emt 0:02:27][%cal Be4d6,Bd6b5,Bb5c3,Bc3a4][%mdl 608] Deflection} Re5 {[%emt 0:00:02]} 30. Nb5 {[%emt 0:03:02]} Ree2 {[%emt 0:00:10]} (30... Rbe2 {is tougher.} 31. Ra6 Qd8) 31. Nc3 {[%emt 0:03:26]} Rec2 {[%emt 0:00:07]} 32. Na4 $1 {[%emt 0:01:48][%csl LRb2,LRb6] Weighted Error Value: White=0.18 (very precise) /Black=0.49} 1-0

[Event "4NCL 2022-2023"]
[Site "Daventry"]
[Date "2023.02.12"]
[Round "6.5"]
[White "Venkatesan, Kavin"]
[Black "Arkell, Keith C"]
[Result "1/2-1/2"]
[ECO "E20"]
[WhiteElo "2184"]
[BlackElo "2404"]
[Annotator "TA"]
[PlyCount "97"]
[EventDate "2022.10.20"]
[EventType "team-tourn"]
[EventCountry "ENG"]
[SourceTitle "playchess.com"]
[Source "ChessBase"]
[SourceQuality "1"]
[TimeControl "40/6000+30:2400+30"]

{[%evp 16,97,72,72,80,80,76,-17,-22,-9,-19,-30,-40,-33,14,19,21,12,19,14,60,60,48,53,80,16,31,35,30,31,90,0,0,-1,0,0,0,0,0,0,-1,-2,-2,-2,-3,-13,0,0,0,0,0,0,0,0,0,0,0,0,0,0,0,0,0,0,8,8,386,8,8,8,8,0,0,0,0,0,0,0,0,0,0,0,0,0]} 1. d4 {[%emt 0:00:03]} Nf6 {[%emt 0:04:22]} 2. c4 {[%emt 0:00:16]} e6 {[%emt 0:00:03][%cal Be7e6,Be6e5][%mdl 32]} 3. Nc3 {[%emt 0:00:18]} Bb4 {[%emt 0:00:03]} 4. f3 {[%emt 0:00:13]} c5 {[%emt 0:01:03]} 5. d5 {[%emt 0:00:07]} Bxc3+ {[%emt 0:03:07]} 6. bxc3 {[%emt 0:00:52]} d6 {[%emt 0:00:10]} 7. e4 {[%emt 0:06:29]} e5 {[%emt 0:00:33]} 8. Bd3 {[%emt 0:02:27]} Nbd7 {[%emt 0:04:03]} 9. Ne2 {[%emt 0:02:17]} h6 {[%emt 0:01:22] E20: Nimzo-Indian: 4 g3 and 4 f3.} 10. Ng3 {[%emt 0:13:16]} Nf8 {[%emt 0:00:34][%cal Bd7f8,Bf8g6,Bg6f4][%mdl 32] [#]} 11. f4 $146 {[%emt 0:09:39]} (11. Be3 $16) ({Predecessor:} 11. Rb1 Qc7 12. O-O g5 13. h4 gxh4 14. Nf5 Bxf5 15. exf5 N8d7 16. Qe1 h3 17. gxh3 {0-1 Seirawan,Y (2600)-Andersson,U (2635) Jakarta International 1983 (11)}) 11... exf4 $11 {[%emt 0:01:31]} 12. Bxf4 {[%emt 0:01:25]} Ng6 {[%emt 0:00:07]} 13. O-O {[%emt 0:01:54][%cal Oe4e5]} Nxf4 {[%emt 0:05:22]} 14. Rxf4 {[%emt 0:00:07][%cal Oe4e5]} h5 {[%emt 0:07:06] [#]} (14... Nd7 $15) 15. e5 $1 {[%emt 0:18:23]} dxe5 {[%emt 0:00:39]} 16. Qe2 $36 {[%emt 0:01:24][%mdl 2048] White has good play.} Qe7 {[%emt 0:07:18]} 17. Re1 {[%emt 0:01:49][%cal Of4f5]} (17. Rf5 {looks sharper.} e4 18. d6 Qxd6 19. Nxe4 Nxe4 20. Qxe4+ Be6 21. Rb1) 17... Bg4 {[%emt 0:04:46] Prevents Rf5.} (17... Kf8 $11 {might be stronger.}) 18. Qxe5 $14 {[%emt 0:13:32]} Qxe5 {[%emt 0:00:06]} 19. Rxe5+ {[%emt 0:00:03]} Kf8 $1 {[%emt 0:00:19]} 20. h3 {[%emt 0:01:26] White has more active pieces. The black rooks are badly placed.} (20. d6 $1 $16) 20... Bd7 $11 {[%emt 0:01:45]} 21. Ne4 {[%emt 0:08:52]} Nxe4 {[%emt 0:00:30]} 22. Bxe4 {[%emt 0:00:52]} Re8 {[%emt 0:03:14] [#] Inhibits d6.} ({Black should try} 22... f6 $14) 23. Rxe8+ {[%emt 0:05:30]} (23. Bg6 $1 $16 Rxe5 24. Rxf7+ (24. Bxf7 $2 {too greedy.} Rf5 $19) 24... Ke8 25. Rf5+ {[%mdl 64] Discovered Attack} (25. Rxg7+ $2 {loses.} Kd8 $19) 25... Kd8 26. Rxe5) 23... Kxe8 {[%emt 0:00:16]} 24. Bf5 {[%emt 0:03:49] Threatens to win with Bxd7+.} Bxf5 {[%emt 0:03:41]} 25. Rxf5 {[%emt 0:00:02][%mdl 4096] Endgame KR-KR} Ke7 {[%emt 0:08:52]} 26. d6+ {[%emt 0:02:33][%mdl 64] Discovered Attack} Ke6 {[%emt 0:00:52]} 27. Rxc5 {[%emt 0:00:07]} Kxd6 {[%emt 0:00:11]} 28. Rd5+ {[%emt 0:00:04]} Kc6 {[%emt 0:01:26]} 29. Rf5 {[%emt 0:02:10]} f6 {[%emt 0:00:40]} 30. h4 {[%emt 0:02:00]} Re8 {[%emt 0:05:05]} 31. Rxh5 {[%emt 0:00:33]} Re4 {[%emt 0:00:17]} 32. Rh7 {[%emt 0:01:19]} Rxc4 {[%emt 0:02:07]} 33. Rxg7 {[%emt 0:00:06] Strongly threatening h5.} Rxh4 {[%emt 0:00:25]} 34. Rf7 {[%emt 0:02:04]} Rf4 {[%emt 0:00:21]} 35. g3 {[%emt 0:01:06]} Rf5 {[%emt 0:00:45]} 36. Kg2 {[%emt 0:00:23]} a5 {[%emt 0:04:26]} 37. g4 {[%emt 0:00:38]} Rf4 {[%emt 0:00:16]} 38. Kg3 {[%emt 0:00:04]} Rf1 {[%emt 0:00:06]} 39. Kg2 {[%emt 0:00:06][%mdl 64] Deflection} Rc1 {[%emt 0:02:55]} 40. Rxf6+ {[%emt 0:00:11]} Kb5 $2 {[%emt 0:00:49][%mdl 8192] [#]} (40... Kd7 $11 {and Black has nothing to worry.}) 41. a4+ $2 {[%emt 0:05:05]} Kxa4 {[%emt 0:00:00] White must now prevent ...Rc2+. The position is equal.} 42. Rb6 {[%emt 0:00:06]} Rc2+ {[%emt 0:00:00]} 43. Kf1 {[%emt 0:00:04]} Rxc3 {[%emt 0:00:00]} 44. Rxb7 {[%emt 0:00:06]} Rc4 {[%emt 0:00:54]} 45. g5 {[%emt 0:01:46]} Rg4 {[%emt 0:02:20]} 46. Rg7 {[%emt 0:01:49]} Kb5 {[%emt 0:03:26]} 47. Ke2 {[%emt 0:04:44]} a4 {[%emt 0:00:09] aiming for ...a3.} 48. Kd3 {[%emt 0:00:51]} a3 {[%emt 0:00:50] ( -> ...a2)} 49. Kc2 {[%emt 0:00:10] Weighted Error Value: White=0.29 (precise) /Black=0.25 (precise)} 1/2-1/2

[Event "4NCL 2022-2023"]
[Site "Daventry"]
[Date "2023.02.12"]
[Round "6.6"]
[White "Pert, Richard G"]
[Black "Murray, David"]
[Result "1-0"]
[ECO "D03"]
[WhiteElo "2411"]
[BlackElo "2120"]
[Annotator "TA"]
[PlyCount "161"]
[EventDate "2022.10.20"]
[EventType "team-tourn"]
[EventCountry "ENG"]
[SourceTitle "playchess.com"]
[Source "ChessBase"]
[SourceQuality "1"]
[TimeControl "40/6000+30:2400+30"]

{[%evp 13,161,0,6,-12,-8,-7,0,0,0,0,0,0,0,0,41,47,62,24,261,279,279,279,292,266,256,267,272,255,249,239,281,253,243,258,258,251,268,34,20,35,229,225,217,229,216,225,216,214,294,294,294,298,299,299,300,299,424,414,419,412,391,398,463,383,394,383,564,313,363,363,363,363,363,363,346,331,363,228,228,228,228,137,137,137,152,149,249,247,245,42,172,44,149,149,167,167,167,45,167,44,44,44,44,44,44,44,44,44,45,44,1180,1157,830,0,588,44,44,44,44,44,44,44,44,44,44,44,44,44,44,44,45,44,44,44,45,45,45,45,2696,2744,2125,1989,1318,1252,29973,29975,29987,29988,29988,29989]} 1. d4 {[%emt 0:03:00]} Nf6 {[%emt 0:00:07]} 2. Nf3 {[%emt 0:00:25]} g6 {[%emt 0:00:41]} 3. Bg5 {[%emt 0:01:55]} Bg7 {[%emt 0:00:15]} 4. Nbd2 {[%emt 0:00:08]} d5 {[%emt 0:01:48]} 5. e3 {[%emt 0:00:08]} O-O {[%emt 0:02:04]} 6. Bd3 {[%emt 0:00:08]} c5 {[%emt 0:01:53]} 7. c3 {[%emt 0:00:15]} Nbd7 {[%emt 0:09:29]} 8. Qe2 {[%emt 0:11:45] D03: 1 d4 d5 2 Nf3 Nf6 3 Bg5, including Torre Attack with early ...d5.} Re8 {[%emt 0:02:56]} 9. O-O {[%emt 0:04:50]} e5 {[%emt 0:07:31]} 10. dxe5 {[%emt 0:03:04] The position is equal.} Nxe5 {[%emt 0:00:31]} 11. Nxe5 {[%emt 0:00:09]} Rxe5 {[%emt 0:00:11]} 12. f4 {[%emt 0:00:13][%cal Bf2f4,Bf4f5][%mdl 32]} Re8 {[%emt 0:02:35]} 13. f5 {[%emt 0:00:08]} Qd6 {[%emt 0:08:56] [#]} (13... c4 $5 {[%cal Rc4d3]} 14. Bc2 Qb6 $11) 14. Rad1 $146 {[%emt 0:12:24]} ({Predecessor:} 14. Qf3 Rf8 15. Rae1 Bxf5 16. Bxf5 gxf5 17. Qxf5 Nd7 18. e4 d4 19. e5 Qe6 20. cxd4 cxd4 21. Qxe6 fxe6 {½-½ Mufic,G (2364)-Rasic,D (2252) CRO-chT Pula 2000 (5)}) 14... Nd7 {[%emt 0:07:32]} 15. Ne4 {[%emt 0:22:17][%mdl 64] Deflection} dxe4 {[%emt 0:13:37]} (15... Qb6 $1 $11 {and Black has nothing to worry.}) 16. Bc4 $18 {[%emt 0:00:15]} Qf8 {[%emt 0:02:47] aiming for ...Ne5.} 17. fxg6 {[%emt 0:01:40]} hxg6 {[%emt 0:04:19]} 18. Rxf7 {[%emt 0:04:39]} Qxf7 {[%emt 0:02:04]} 19. Bxf7+ {[%emt 0:01:50]} Kxf7 {[%emt 0:00:22]} 20. Qc4+ {[%emt 0:04:57]} Re6 {[%emt 0:00:25]} 21. Rf1+ {[%emt 0:05:31]} (21. Rd6 Ne5 22. Qb3 (22. Qxe4 $2 Rxd6 23. h3 Rd1+ 24. Kh2 Rd2 $19) (22. Qxc5 Nc6 $14) 22... c4 $16) 21... Bf6 {[%emt 0:04:53]} 22. g4 {[%emt 0:02:21] Threatens to win with Bxf6.} Ke7 {[%emt 0:08:16]} 23. Bxf6+ {[%emt 0:00:24]} Rxf6 {[%emt 0:01:43]} 24. Qxe4+ {[%emt 0:00:24]} Kf7 {[%emt 0:03:18]} 25. Rd1 {[%emt 0:04:52]} (25. Qd5+ $18 Kg7 26. Rxf6 {[%mdl 64] Deflection} Nxf6 27. Qxc5) 25... a5 $1 $14 {[%emt 0:03:41]} 26. g5 {[%emt 0:07:41]} Rf5 {[%emt 0:01:23]} (26... Re6 $14 27. Qh4 Kg8) 27. Rd5 $18 {[%emt 0:01:13]} Rxd5 {[%emt 0:06:33]} 28. Qxd5+ {[%emt 0:00:02]} Ke7 {[%emt 0:03:38]} 29. Qe4+ {[%emt 0:01:46][%mdl 1024] White has strong compensation.} Kf7 {[%emt 0:00:57]} 30. Qf4+ {[%emt 0:00:52]} Ke6 {[%emt 0:01:38]} 31. h4 {[%emt 0:03:30]} Ra6 {[%emt 0:07:11] [#]} 32. h5 $1 {[%emt 0:04:31][%mdl 512]} gxh5 {[%emt 0:00:34]} 33. g6 {[%emt 0:00:04]} Nf6 {[%emt 0:02:31]} 34. Qc4+ {[%emt 0:00:12]} Kf5 {[%emt 0:00:34]} (34... Kd6 $142 35. Qf7 Nd5) 35. Qxc5+ {[%emt 0:00:31]} Kxg6 {[%emt 0:00:08]} 36. Qxc8 {[%emt 0:00:04][%mdl 4096] Endgame KQ-KRN} Rb6 {[%emt 0:00:32]} 37. b3 {[%emt 0:04:57]} a4 {[%emt 0:00:54]} 38. Qd8 {[%emt 0:02:50]} Rc6 {[%emt 0:00:15]} 39. Qd3+ {[%emt 0:00:14]} (39. bxa4 Rxc3 40. Qb6 Rc4 41. Qb1+ Kh6 42. Qxb7 Rxa4) 39... Kg5 {[%emt 0:00:35]} (39... Kf7 $142 40. bxa4 Re6) 40. e4 {[%emt 0:00:49] And now Qb5+ would win.} axb3 {[%emt 0:00:36]} 41. axb3 {[%emt 0:00:00]} Kf4 {[%emt 0:00:00]} 42. Kg2 {[%emt 0:00:00] Qf3+ would be deadly.} Nxe4 {[%emt 0:00:00]} 43. Qf3+ {[%emt 0:00:00]} Ke5 {[%emt 0:00:00]} 44. Qxh5+ {[%emt 0:00:00]} Kf4 {[%emt 0:01:38]} 45. Qh2+ {[%emt 0:05:06]} Ke3 {[%emt 0:02:52] ( -> ...Rg6+)} 46. Qg1+ $1 {[%emt 0:00:20]} Kf4 {[%emt 0:08:06]} 47. Qc1+ {[%emt 0:09:04]} Ke5 {[%emt 0:01:26]} 48. c4 {[%emt 0:00:36]} Rg6+ {[%emt 0:05:55]} 49. Kh2 {[%emt 0:00:23]} Rg3 {[%emt 0:02:04]} (49... b6 $16 {was worth a try.} 50. Qe3 Rd6) 50. b4 {[%emt 0:01:44]} Kd4 {[%emt 0:02:33]} 51. Qf4 $2 {[%emt 0:02:47]} ({Better is} 51. Qa1+ $18 Kxc4 52. Qe5) 51... Rc3 {[%emt 0:01:43]} ({Black should play} 51... Rb3 $1 $14) 52. Qc7 {[%emt 0:01:47]} ({Only move:} 52. c5 $18 Rb3 53. Qb8 Rb2+ 54. Kh3) 52... Rxc4 {[%emt 0:00:55]} (52... Rc2+ $14 53. Kh1 Rc1+ 54. Kh2 Rc2+ 55. Kg1 Rc1+ 56. Kh2 Rc2+) 53. Qxb7 $16 {[%emt 0:00:08]} Rc2+ {[%emt 0:04:26]} 54. Kh3 {[%emt 0:00:23]} Rc3+ {[%emt 0:00:38]} 55. Kh4 {[%emt 0:00:37]} (55. Kg4 $18 {Black must now prevent Kf4.} Rc4 56. Kf3) 55... Rb3 {[%emt 0:01:15]} (55... Rc4 $1 $14) 56. b5 {[%emt 0:02:11]} (56. Qd7+ $18 Kc3 57. Qc6+ Kd4 58. Qb6+ Kd3 59. Qa6+ Ke3 60. Qa7+ Kd3 61. Qd7+ Kc3 62. Qc6+ Kd4 63. Qb6+ Kd3 64. Kh5) 56... Nc5 $14 {[%emt 0:04:37]} 57. Qc6 {[%emt 0:01:08]} Kc4 {[%emt 0:02:51]} 58. b6 {[%emt 0:00:18]} Rb5 {[%emt 0:00:41]} 59. Kg5 {[%emt 0:05:03]} Rb1 {[%emt 0:03:38]} 60. Kg6 {[%emt 0:02:22] Kf7 is the strong threat.} (60. Kf5 Rb3 61. Kg5 (61. Ke5 Rxb6 62. Qd5+ Kb4 $16) 61... Rd3 $18) 60... Rb3 {[%emt 0:04:01]} 61. Kf7 {[%emt 0:00:54] Strongly threatening Ke7.} Rb2 $2 {[%emt 0:00:11][%mdl 8192]} (61... Rh3 $14 62. Kg6 Rd3) 62. Ke7 $18 {[%emt 0:01:31]} Re2+ {[%emt 0:00:30] [#]} 63. Kf7 $2 {[%emt 0:02:34]} (63. Kd8 $1 $18 Rf2 64. Qe8 (64. b7 Rb2 $14)) 63... Rf2+ $2 {[%emt 0:00:19][%mdl 8192] [#]} (63... Rb2 $11 64. Ke7 Re2+ 65. Kd8 Rf2) 64. Kg8 $2 {[%emt 0:00:42]} (64. Ke8 $1 $18) 64... Rb2 $14 {[%emt 0:00:13]} 65. Qc7 {[%emt 0:00:27]} Rb4 {[%emt 0:01:42]} 66. Kf7 {[%emt 0:00:40]} Kd5 {[%emt 0:00:40] Dodges Qc6+} 67. Kg6 {[%emt 0:01:12]} Rb3 {[%emt 0:00:37]} 68. Kf5 {[%emt 0:01:21]} Rf3+ {[%emt 0:00:19]} 69. Kg4 {[%emt 0:00:41]} Rb3 {[%emt 0:00:12]} 70. Kh4 {[%emt 0:00:19]} Rb4+ {[%emt 0:00:20]} 71. Kg3 {[%emt 0:00:21]} Rb3+ {[%emt 0:00:12]} 72. Kf2 {[%emt 0:00:15]} Rb2+ {[%emt 0:00:40]} 73. Ke3 {[%emt 0:00:11] Intending Qf7+ and mate.} Rb3+ {[%emt 0:00:34]} 74. Kd2 {[%emt 0:00:12]} Rb2+ {[%emt 0:00:19]} 75. Kc1 {[%emt 0:00:16]} Nd3+ $2 {[%emt 0:00:50][%mdl 8192]} (75... Rb5 $14 76. Kc2 Rb3) 76. Kd1 $18 {[%emt 0:00:08]} Nf2+ {[%emt 0:00:29]} 77. Ke1 {[%emt 0:00:10]} Nd3+ {[%emt 0:00:03]} 78. Kf1 {[%emt 0:00:06]} Nc5 {[%emt 0:00:05]} 79. Qf7+ {[%emt 0:00:55] White mates.} Ke4 {[%emt 0:00:39]} 80. Qc4+ {[%emt 0:01:12]} Kf3 {[%emt 0:00:14]} 81. Qc3+ {[%emt 0:00:25] Weighted Error Value: White=0.39/Black=0.36} (81. Qxc5 $2 {gets mated.} Rb1+) 1-0